fUSD/lending_fUSD_20250514
["ID","MTS","AMOUNT","RATE_DAILY","PERIOD"]
[361096074,1747252261236,-151.0,0.00011492,2]
[361096075,1747252261245,-151.0,0.00011492,2]
[361096076,1747252261255,-437.717818,0.00011492,2]
[361096077,1747252261264,-437.717818,0.00011492,2]
[361096078,1747252261274,-151.0,0.00011492,2]
[361096079,1747252261283,-151.0,0.00011492,2]
[361096080,1747252261293,-151.0,0.00011492,2]
[361096081,1747252261303,-208.017201,0.00011492,2]
[361096082,1747252261312,-208.017201,0.00011492,2]
[361096083,1747252261322,-151.0,0.00011492,2]
[361096084,1747252261331,-151.0,0.00011492,2]
[361096085,1747252261340,-762.276375,0.00011492,2]
[361096086,1747252261349,-762.276375,0.00011492,2]
[361096087,1747252261358,-658.356149,0.00011492,2]
[361096088,1747252261367,-658.356149,0.00011492,2]
[361096089,1747252261376,-151.0,0.00011493,2]
[361096090,1747252261385,-151.0,0.00011493,2]
[361096091,1747252261394,-500.0,0.00011494,2]
[361096092,1747252261403,-150.0,0.00011497,2]
[361096093,1747252261413,-1000.0,0.000115,2]
[361096094,1747252261422,-21285.79843885,0.00011503,2]
[361096095,1747252261432,-198.23788,0.00011503,2]
[361096096,1747252261441,-198.23788,0.00011503,2]
[361096097,1747252261451,-151.0,0.00011503,2]
[361096098,1747252261460,-2751.0,0.00011507,2]
[361096099,1747252261470,-151.0,0.00011507,2]
[361096100,1747252261479,-151.0,0.00011507,2]
[361096101,1747252261488,-151.0,0.00011507,2]
[361096102,1747252261497,-151.0,0.00011507,2]
[361096103,1747252261509,-216.0,0.0001151,2]
[361096104,1747252261519,-1000.0,0.00011518,2]
[361096105,1747252261529,-151.0,0.00011523,2]
[361096106,1747252261538,-151.0,0.00011523,2]
[361096107,1747252261548,-151.0,0.00011523,2]
[361096108,1747252261557,-216.600963,0.00011523,2]
[361096109,1747252261567,-216.600963,0.00011523,2]
[361096110,1747252261576,-150.0,0.00011525,2]
[361096111,1747252261585,-202.01771898,0.00011552,2]
[361096112,1747252261595,-8850.10763616,0.00011582,2]
[361096113,1747252261604,-151.0,0.00011583,2]
[361096114,1747252261613,-151.0,0.00011583,2]
[361096115,1747252261622,-151.0,0.00011583,2]
[361096116,1747252261632,-8092.83119829,0.00011583,2]
[361096117,1747252261642,-200.0,0.0001159,2]
[361096118,1747252261651,-200.0,0.0001159,2]
[361096119,1747252261661,-1000.0,0.000116,2]
[361096120,1747252261671,-207.5298998,0.00011643,2]
[361096121,1747252261681,-198.62,0.00011653,2]
[361096122,1747252261690,-1000.0,0.000117,2]
[361096123,1747252261700,-8850.10763616,0.00011704,2]
[361096124,1747252261709,-151.0,0.00011704,2]
[361096125,1747252261719,-151.0,0.00011704,2]
[361096126,1747252261728,-417.387915,0.00011704,2]
[361096127,1747252261738,-417.387915,0.00011704,2]
[361096128,1747252261747,-162.841706,0.00011704,2]
[361096129,1747252261757,-162.841706,0.00011704,2]
[361096130,1747252261766,-151.0,0.00011704,2]
[361096131,1747252261776,-151.0,0.00011704,2]
[361096132,1747252261786,-8092.83119829,0.00011705,2]
[361096133,1747252261795,-151.0,0.00011706,2]
[361096134,1747252261805,-456.645041,0.00011706,2]
[361096135,1747252261815,-200.0,0.00011706,2]
[361096136,1747252261824,-200.0,0.00011706,2]
[361096137,1747252261834,-457.51,0.00011708,2]
[361096138,1747252261843,-804.13,0.00011708,2]
[361096139,1747252261852,-804.13,0.00011711,2]
[361096140,1747252261862,-804.13,0.00011711,2]
[361096141,1747252261871,-1000.0,0.00011721,2]
[361096142,1747252261881,-1000.0,0.00011721,2]
[361096143,1747252261890,-400.0,0.00011742,2]
[361096144,1747252261900,-204.43889601,0.00011742,2]
[361096145,1747252261909,-400.0,0.00011742,2]
[361096146,1747252261917,-400.0,0.00011742,2]
[361096147,1747252261925,-400.0,0.00011742,2]
[361096148,1747252261933,-400.0,0.00011742,2]
[361096149,1747252261942,-400.0,0.00011742,2]
[361096150,1747252261950,-248.66,0.00011742,2]
[361096151,1747252261959,-400.0,0.00011742,2]
[361096152,1747252261968,-400.0,0.00011742,2]
[361096153,1747252261978,-390.93,0.00011742,2]
[361096154,1747252261988,-450.0,0.00011742,2]
[361096155,1747252261997,-456.92,0.00011742,2]
[361096156,1747252262007,-328.54,0.00011742,2]
[361096157,1747252262016,-523.05,0.00011742,2]
[361096158,1747252262025,-400.0,0.00011742,2]
[361096159,1747252262035,-168.41758747,0.00011742,2]
[361096160,1747252262045,-400.0,0.00011742,2]
[361096161,1747252262055,-579.33,0.00011742,2]
[361096162,1747252262064,-400.0,0.00011742,2]
[361096163,1747252262074,-418.35,0.00011742,2]
[361096164,1747252262085,-400.0,0.00011742,2]
[361096165,1747252262095,-214.69646269,0.00011742,2]
[361096166,1747252262104,-400.0,0.00011742,2]
[361096167,1747252262115,-400.0,0.00011742,2]
[361096168,1747252262126,-500.0,0.00011742,2]
[361096169,1747252262136,-150.0,0.00011742,2]
[361096170,1747252262146,-400.0,0.00011742,2]
[361096171,1747252262158,-3063.23,0.00011742,2]
[361096172,1747252262168,-1535.7,0.00011742,2]
[361096173,1747252262178,-450.0,0.00011742,2]
[361096174,1747252262189,-400.0,0.00011742,2]
[361096175,1747252262199,-984.98,0.00011742,2]
[361096176,1747252262208,-400.0,0.00011742,2]
[361096177,1747252262218,-492.83044891,0.00011742,2]
[361096178,1747252262228,-400.0,0.00011742,2]
[361096179,1747252262237,-400.0,0.00011742,2]
[361096180,1747252262248,-991.25,0.00011742,2]
[361096181,1747252262258,-1205.16,0.00011742,2]
[361096182,1747252262267,-400.0,0.00011742,2]
[361096183,1747252262277,-1544.61,0.00011742,2]
[361096184,1747252262287,-400.0,0.00011742,2]
[361096185,1747252262298,-400.0,0.00011742,2]
[361096186,1747252262308,-400.0,0.00011742,2]
[361096187,1747252262318,-400.0,0.00011742,2]
[361096188,1747252262327,-486.2,0.00011742,2]
[361096189,1747252262338,-1246.76,0.00011742,2]
[361096190,1747252262350,-517.71003754,0.00011742,2]
[361096191,1747252262360,-400.0,0.00011742,2]
[361096192,1747252262370,-400.0,0.00011742,2]
[361096193,1747252262380,-425.06,0.00011742,2]
[361096194,1747252262390,-735.44,0.00011742,2]
[361096195,1747252262399,-1014.75,0.00011742,2]
[361096196,1747252262409,-400.0,0.00011742,2]
[361096197,1747252262419,-400.0,0.00011742,2]
[361096198,1747252262429,-443.28,0.00011742,2]
[361096199,1747252262438,-304.76,0.00011742,2]
[361096200,1747252262448,-622.61,0.00011742,2]
[361096201,1747252262458,-845.16,0.00011742,2]
[361096202,1747252262468,-400.0,0.00011742,2]
[361096203,1747252262478,-400.0,0.00011742,2]
[361096204,1747252262488,-400.0,0.00011742,2]
[361096205,1747252262497,-450.0,0.00011742,2]
[361096206,1747252262507,-727.04,0.00011742,2]
[361096207,1747252262518,-552.66,0.00011742,2]
[361096208,1747252262527,-348.36097816,0.00011742,2]
[361096209,1747252262536,-921.45,0.00011742,2]
[361096210,1747252262546,-400.0,0.00011742,2]
[361096211,1747252262556,-564.1,0.00011742,2]
[361096212,1747252262565,-175.05477104,0.00011742,2]
[361096213,1747252262574,-400.0,0.00011742,2]
[361096214,1747252262584,-400.0,0.00011742,2]
[361096215,1747252262594,-416.44,0.00011742,2]
[361096216,1747252262604,-400.0,0.00011742,2]
[361096217,1747252262614,-1537.99,0.00011742,2]
[361096218,1747252262624,-400.0,0.00011742,2]
[361096219,1747252262635,-400.0,0.00011742,2]
[361096220,1747252262645,-400.0,0.00011742,2]
[361096221,1747252262655,-400.0,0.00011742,2]
[361096222,1747252262665,-4166.23,0.00011742,2]
[361096223,1747252262677,-400.0,0.00011742,2]
[361096224,1747252262688,-500.0,0.00011742,2]
[361096225,1747252262699,-400.0,0.00011742,2]
[361096226,1747252262709,-400.0,0.00011742,2]
[361096227,1747252262719,-876.32,0.00011742,2]
[361096228,1747252262728,-400.0,0.00011742,2]
[361096229,1747252262738,-215.07010608,0.00011742,2]
[361096230,1747252262749,-719.09,0.00011742,2]
[361096231,1747252262759,-216.91404866,0.00011742,2]
[361096232,1747252262768,-500.0,0.00011742,2]
[361096233,1747252262778,-400.0,0.00011742,2]
[361096234,1747252262788,-169.91561985,0.00011742,2]
[361096235,1747252262798,-174.23246794,0.00011742,2]
[361096236,1747252262808,-400.0,0.00011742,2]
[361096237,1747252262818,-81007.12,0.00011742,2]
[361096238,1747252262828,-1595.26,0.00011742,2]
[361096239,1747252262838,-400.0,0.00011742,2]
[361096240,1747252262848,-400.0,0.00011742,2]
[361096241,1747252262858,-1215.19,0.00011742,2]
[361096242,1747252262868,-6940.22,0.00011742,2]
[361096243,1747252262880,-223.28199725,0.00011742,2]
[361096244,1747252262890,-521.96,0.00011742,2]
[361096245,1747252262900,-313.74558854,0.00011742,2]
[361096246,1747252262910,-472.76,0.00011742,2]
[361096247,1747252262920,-400.0,0.00011742,2]
[361096248,1747252262931,-213.25483401,0.00011742,2]
[361096249,1747252262940,-400.0,0.00011742,2]
[361096250,1747252262950,-326.30011888,0.00011742,2]
[361096251,1747252262960,-654.53,0.00011742,2]
[361096252,1747252262969,-1911.29,0.00011742,2]
[361096253,1747252262979,-400.0,0.00011742,2]
[361096254,1747252262989,-400.0,0.00011742,2]
[361096255,1747252262999,-858.75,0.00011742,2]
[361096256,1747252263009,-537.40619917,0.00011742,2]
[361096257,1747252263019,-2596.99,0.00011742,2]
[361096258,1747252263029,-400.0,0.00011742,2]
[361096259,1747252263039,-150.0,0.00011742,2]
[361096260,1747252263049,-631.67,0.00011742,2]
[361096261,1747252263059,-697.3,0.00011742,2]
[361096262,1747252263071,-400.0,0.00011742,2]
[361096263,1747252263081,-633.46,0.00011742,2]
[361096264,1747252263091,-400.0,0.00011742,2]
[361096265,1747252263101,-2360.3,0.00011742,2]
[361096266,1747252263111,-402.0300311,0.00011742,2]
[361096267,1747252263121,-400.0,0.00011742,2]
[361096268,1747252263131,-1335.81,0.00011742,2]
[361096269,1747252263141,-400.0,0.00011742,2]
[361096270,1747252263151,-400.0,0.00011742,2]
[361096271,1747252263166,-400.0,0.00011742,2]
[361096272,1747252263177,-581.88,0.00011742,2]
[361096273,1747252263188,-400.0,0.00011742,2]
[361096274,1747252263199,-400.0,0.00011742,2]
[361096275,1747252263209,-845.63,0.00011742,2]
[361096276,1747252263219,-619.72,0.00011742,2]
[361096277,1747252263228,-400.0,0.00011742,2]
[361096278,1747252263240,-1263.67,0.00011742,2]
[361096279,1747252263251,-1517.09,0.00011742,2]
[361096280,1747252263261,-1106.03,0.00011742,2]
[361096281,1747252263271,-1298.07,0.00011742,2]
[361096282,1747252263281,-400.0,0.00011742,2]
[361096283,1747252263292,-1000.0,0.00011742,2]
[361096284,1747252263301,-807.54,0.00011742,2]
[361096285,1747252263312,-150.0,0.00011743,2]
[361096286,1747252263322,-450.0,0.00011743,2]
[361096287,1747252263331,-151.0,0.00011743,2]
[361096288,1747252263341,-151.0,0.00011743,2]
[361096289,1747252263351,-400.0,0.00011743,2]
[361096290,1747252263360,-400.0,0.00011743,2]
[361096291,1747252263370,-400.0,0.00011743,2]
[361096292,1747252263381,-400.0,0.00011743,2]
[361096293,1747252263391,-400.0,0.00011743,2]
[361096294,1747252263402,-582.97,0.00011743,2]
[361096295,1747252263412,-459.83350464,0.00011743,2]
[361096296,1747252263423,-498.21,0.00011743,2]
[361096297,1747252263432,-518.61,0.00011743,2]
[361096298,1747252263442,-400.0,0.00011743,2]
[361096299,1747252263452,-400.0,0.00011743,2]
[361096300,1747252263462,-450.0,0.00011743,2]
[361096301,1747252263472,-966.25,0.00011743,2]
[361096302,1747252263482,-400.0,0.00011743,2]
[361096303,1747252263492,-151.0,0.00011743,2]
[361096304,1747252263502,-400.0,0.00011743,2]
[361096305,1747252263512,-400.0,0.00011743,2]
[361096306,1747252263522,-427.82,0.00011743,2]
[361096307,1747252263533,-465.27,0.00011743,2]
[361096308,1747252263543,-400.0,0.00011743,2]
[361096309,1747252263553,-732.105194,0.00011743,2]
[361096310,1747252263563,-400.0,0.00011743,2]
[361096311,1747252263572,-732.105194,0.00011743,2]
[361096312,1747252263582,-400.0,0.00011743,2]
[361096313,1747252263593,-430.1,0.00011743,2]
[361096314,1747252263602,-516.28,0.00011743,2]
[361096315,1747252263612,-400.0,0.00011743,2]
[361096316,1747252263622,-400.0,0.00011743,2]
[361096317,1747252263633,-400.0,0.00011743,2]
[361096318,1747252263643,-400.0,0.00011743,2]
[361096319,1747252263653,-520.61,0.00011743,2]
[361096320,1747252263663,-400.0,0.00011743,2]
[361096321,1747252263672,-400.0,0.00011743,2]
[361096322,1747252263682,-400.0,0.00011743,2]
[361096323,1747252263692,-400.0,0.00011743,2]
[361096324,1747252263702,-331.96,0.00011743,2]
[361096325,1747252263712,-400.0,0.00011743,2]
[361096326,1747252263722,-151.0,0.00011743,2]
[361096327,1747252263732,-400.0,0.00011743,2]
[361096328,1747252263743,-151.0,0.00011743,2]
[361096329,1747252263753,-537.9,0.00011743,2]
[361096330,1747252263763,-844.57,0.00011743,2]
[361096331,1747252263774,-2116.91,0.00011743,2]
[361096332,1747252263784,-450.0,0.00011743,2]
[361096333,1747252263795,-400.0,0.00011743,2]
[361096334,1747252263805,-459.22,0.00011743,2]
[361096335,1747252263815,-400.0,0.00011743,2]
[361096336,1747252263825,-400.0,0.00011743,2]
[361096337,1747252263836,-400.0,0.00011743,2]
[361096338,1747252263846,-437.717818,0.00011743,2]
[361096339,1747252263856,-400.0,0.00011743,2]
[361096340,1747252263867,-400.0,0.00011743,2]
[361096341,1747252263877,-437.717818,0.00011743,2]
[361096342,1747252263888,-400.0,0.00011743,2]
[361096343,1747252263898,-473.89,0.00011743,2]
[361096344,1747252263908,-447.3,0.00011743,2]
[361096345,1747252263918,-151.0,0.00011743,2]
[361096346,1747252263929,-400.0,0.00011743,2]
[361096347,1747252263939,-400.0,0.00011743,2]
[361096348,1747252263950,-159.64,0.00011743,2]
[361096349,1747252263960,-400.0,0.00011743,2]
[361096350,1747252263970,-400.0,0.00011743,2]
[361096351,1747252263980,-151.0,0.00011743,2]
[361096352,1747252263990,-5509.037549,0.00011743,2]
[361096353,1747252263999,-400.0,0.00011743,2]
[361096354,1747252264009,-596.51,0.00011743,2]
[361096355,1747252264019,-400.0,0.00011743,2]
[361096356,1747252264029,-500.0,0.00011743,2]
[361096357,1747252264039,-151.0,0.00011743,2]
[361096358,1747252264048,-400.0,0.00011743,2]
[361096359,1747252264058,-525.85,0.00011743,2]
[361096360,1747252264068,-400.0,0.00011743,2]
[361096361,1747252264078,-208.017201,0.00011743,2]
[361096362,1747252264087,-208.017201,0.00011743,2]
[361096363,1747252264097,-151.0,0.00011743,2]
[361096364,1747252264106,-454.61,0.00011743,2]
[361096365,1747252264116,-151.0,0.00011743,2]
[361096366,1747252264126,-520.03,0.00011743,2]
[361096367,1747252264136,-400.0,0.00011743,2]
[361096368,1747252264147,-400.0,0.00011743,2]
[361096369,1747252264157,-439.12,0.00011743,2]
[361096370,1747252264169,-400.0,0.00011743,2]
[361096371,1747252264179,-537.23675846,0.00011743,2]
[361096372,1747252264189,-400.0,0.00011743,2]
[361096373,1747252264199,-400.0,0.00011743,2]
[361096374,1747252264210,-400.0,0.00011743,2]
[361096375,1747252264400,-762.276375,0.00011743,2]
[361096376,1747252264410,-762.276375,0.00011743,2]
[361096377,1747252264419,-1405.56,0.00011743,2]
[361096378,1747252264429,-456.22,0.00011743,2]
[361096379,1747252264438,-400.0,0.00011743,2]
[361096380,1747252264448,-485.21,0.00011743,2]
[361096381,1747252264457,-4787.66,0.00011743,2]
[361096382,1747252264467,-751.98,0.00011743,2]
[361096383,1747252264476,-173.33080426,0.00011743,2]
[361096384,1747252264486,-400.0,0.00011743,2]
[361096385,1747252264495,-1151.41,0.00011743,2]
[361096386,1747252264504,-500.0,0.00011743,2]
[361096387,1747252264515,-1660.66,0.00011743,2]
[361096388,1747252264524,-577.2,0.00011743,2]
[361096389,1747252264533,-151.0,0.00011743,2]
[361096390,1747252264543,-1441.02,0.00011743,2]
[361096391,1747252264552,-400.0,0.00011743,2]
[361096392,1747252264562,-538.66,0.00011743,2]
[361096393,1747252264571,-400.16,0.00011743,2]
[361096394,1747252264581,-1379.26,0.00011743,2]
[361096395,1747252264590,-8501.55,0.00011743,2]
[361096396,1747252264600,-400.0,0.00011743,2]
[361096397,1747252264609,-12015.32,0.00011743,2]
[361096398,1747252264618,-1523.09,0.00011743,2]
[361096399,1747252264628,-400.0,0.00011743,2]
[361096400,1747252264638,-400.0,0.00011743,2]
[361096401,1747252264647,-151.0,0.00011743,2]
[361096402,1747252264657,-1243.48,0.00011743,2]
[361096403,1747252264666,-2419.17,0.00011743,2]
[361096404,1747252264676,-920.43,0.00011743,2]
[361096405,1747252264685,-500.0,0.00011743,2]
[361096406,1747252264695,-400.0,0.00011743,2]
[361096407,1747252264704,-832.86,0.00011743,2]
[361096408,1747252264713,-1878.08,0.00011743,2]
[361096409,1747252264722,-198.23788,0.00011743,2]
[361096410,1747252264732,-400.0,0.00011743,2]
[361096411,1747252264742,-500.0,0.00011743,2]
[361096412,1747252264751,-198.23788,0.00011743,2]
[361096413,1747252264760,-400.0,0.00011743,2]
[361096414,1747252264770,-665.61,0.00011743,2]
[361096415,1747252264779,-400.0,0.00011743,2]
[361096416,1747252264789,-403.36,0.00011743,2]
[361096417,1747252264798,-553.9,0.00011743,2]
[361096418,1747252264807,-702.25,0.00011743,2]
[361096419,1747252264817,-4532.68,0.00011743,2]
[361096420,1747252264826,-658.356149,0.00011743,2]
[361096421,1747252264836,-400.0,0.00011743,2]
[361096422,1747252264845,-658.356149,0.00011743,2]
[361096423,1747252264854,-400.0,0.00011743,2]
[361096424,1747252264864,-2599.27,0.00011743,2]
[361096425,1747252264873,-407.26,0.00011743,2]
[361096426,1747252264886,-386.76901233,0.00011743,2]
[361096427,1747252264896,-1088.86,0.00011743,2]
[361096428,1747252264905,-2680.29,0.00011743,2]
[361096429,1747252264915,-1962.54,0.00011743,2]
[361096430,1747252264925,-449.57,0.00011743,2]
[361096431,1747252264935,-698.41,0.00011743,2]
[361096432,1747252264944,-400.0,0.00011743,2]
[361096433,1747252264954,-400.0,0.00011743,2]
[361096434,1747252264963,-5601.78,0.00011743,2]
[361096435,1747252264972,-412.11,0.00011743,2]
[361096436,1747252264981,-561.5,0.00011743,2]
[361096437,1747252264991,-467.49,0.00011743,2]
[361096438,1747252265000,-845.16,0.00011743,2]
[361096439,1747252265010,-400.0,0.00011743,2]
[361096440,1747252265020,-400.0,0.00011743,2]
[361096441,1747252265029,-400.0,0.00011743,2]
[361096442,1747252265038,-400.0,0.00011743,2]
[361096443,1747252265047,-18647.47,0.00011743,2]
[361096444,1747252265056,-557.37,0.00011743,2]
[361096445,1747252265066,-417.387915,0.00011743,2]
[361096446,1747252265075,-400.0,0.00011743,2]
[361096447,1747252265085,-400.0,0.00011743,2]
[361096448,1747252265094,-736.36,0.00011743,2]
[361096449,1747252265103,-417.387915,0.00011743,2]
[361096450,1747252265112,-1061.41,0.00011743,2]
[361096451,1747252265121,-151.0,0.00011743,2]
[361096452,1747252265132,-3825.36,0.00011743,2]
[361096453,1747252265141,-400.0,0.00011743,2]
[361096454,1747252265150,-630.0,0.00011743,2]
[361096455,1747252265163,-631.86,0.00011743,2]
[361096456,1747252265172,-400.0,0.00011743,2]
[361096457,1747252265181,-14729.83,0.00011743,2]
[361096458,1747252265190,-500.0,0.00011743,2]
[361096459,1747252265199,-1078.34,0.00011743,2]
[361096460,1747252265208,-453.65,0.00011743,2]
[361096461,1747252265217,-485.94,0.00011743,2]
[361096462,1747252265227,-791.55,0.00011743,2]
[361096463,1747252265237,-1870.65,0.00011743,2]
[361096464,1747252265246,-400.0,0.00011743,2]
[361096465,1747252265256,-400.0,0.00011743,2]
[361096466,1747252265265,-760.44,0.00011743,2]
[361096467,1747252265274,-400.0,0.00011743,2]
[361096468,1747252265283,-162.841706,0.00011743,2]
[361096469,1747252265293,-162.841706,0.00011743,2]
[361096470,1747252265302,-195.0,0.00011743,2]
[361096471,1747252265311,-400.0,0.00011743,2]
[361096472,1747252265320,-400.0,0.00011743,2]
[361096473,1747252265330,-658.97,0.00011743,2]
[361096474,1747252265339,-400.0,0.00011743,2]
[361096475,1747252265348,-400.0,0.00011743,2]
[361096476,1747252265357,-151.0,0.00011743,2]
[361096477,1747252265367,-472.0,0.00011743,2]
[361096478,1747252265376,-3627.07,0.00011743,2]
[361096479,1747252265387,-261.160346,0.00011743,2]
[361096480,1747252265397,-767.72,0.00011743,2]
[361096481,1747252265406,-151.0,0.00011743,2]
[361096482,1747252265415,-520.71,0.00011743,2]
[361096483,1747252265425,-580.55,0.00011743,2]
[361096484,1747252265435,-400.0,0.00011743,2]
[361096485,1747252265444,-151.0,0.00011743,2]
[361096486,1747252265453,-151.0,0.00011743,2]
[361096487,1747252265463,-151.0,0.00011743,2]
[361096488,1747252265472,-602.63,0.00011743,2]
[361096489,1747252265481,-400.0,0.00011744,2]
[361096490,1747252265491,-171.494327,0.00011744,2]
[361096491,1747252265500,-400.0,0.00011744,2]
[361096492,1747252265509,-400.0,0.00011744,2]
[361096493,1747252265518,-466.1,0.00011744,2]
[361096494,1747252265527,-400.0,0.00011744,2]
[361096495,1747252265538,-151.0,0.00011744,2]
[361096496,1747252265549,-463.84,0.00011744,2]
[361096497,1747252265559,-400.0,0.00011744,2]
[361096498,1747252265568,-400.0,0.00011744,2]
[361096499,1747252265577,-400.0,0.00011744,2]
[361096500,1747252265587,-400.0,0.00011744,2]
[361096501,1747252265598,-151.0,0.00011744,2]
[361096502,1747252265607,-400.0,0.00011744,2]
[361096503,1747252265617,-400.0,0.00011744,2]
[361096504,1747252265626,-437.95,0.00011744,2]
[361096505,1747252265635,-451.53336627,0.00011744,2]
[361096506,1747252265644,-400.0,0.00011744,2]
[361096507,1747252265654,-400.0,0.00011744,2]
[361096508,1747252265664,-400.0,0.00011744,2]
[361096509,1747252265674,-216.600963,0.00011744,2]
[361096510,1747252265683,-216.600963,0.00011744,2]
[361096511,1747252265692,-400.0,0.00011744,2]
[361096512,1747252265702,-400.0,0.00011744,2]
[361096513,1747252265711,-400.0,0.00011744,2]
[361096514,1747252265720,-400.0,0.00011744,2]
[361096515,1747252265730,-400.0,0.00011744,2]
[361096516,1747252265740,-400.0,0.00011744,2]
[361096517,1747252265750,-400.0,0.00011744,2]
[361096518,1747252265761,-400.0,0.00011744,2]
[361096519,1747252265771,-400.0,0.00011744,2]
[361096520,1747252265781,-400.0,0.00011744,2]
[361096521,1747252265791,-400.0,0.00011744,2]
[361096522,1747252265800,-457.78,0.00011744,2]
[361096523,1747252265809,-400.0,0.00011744,2]
[361096524,1747252265819,-158.13482514,0.00011744,2]
[361096525,1747252265827,-400.0,0.00011744,2]
[361096526,1747252265837,-400.0,0.00011744,2]
[361096527,1747252265847,-400.0,0.00011744,2]
[361096528,1747252265856,-400.0,0.00011744,2]
[361096529,1747252265865,-407.49,0.00011744,2]
[361096530,1747252265874,-513.15031539,0.00011744,2]
[361096531,1747252265884,-400.0,0.00011744,2]
[361096532,1747252265894,-400.0,0.00011744,2]
[361096533,1747252265903,-400.0,0.00011744,2]
[361096534,1747252265912,-400.0,0.00011744,2]
[361096535,1747252265921,-400.0,0.00011744,2]
[361096536,1747252265930,-400.0,0.00011744,2]
[361096537,1747252265939,-400.0,0.00011744,2]
[361096538,1747252265949,-414.05,0.00011744,2]
[361096539,1747252265958,-400.0,0.00011744,2]
[361096540,1747252265968,-151.0,0.00011744,2]
[361096541,1747252265977,-151.0,0.00011744,2]
[361096542,1747252265987,-151.0,0.00011744,2]
[361096543,1747252265997,-400.0,0.00011744,2]
[361096544,1747252266006,-400.0,0.00011744,2]
[361096545,1747252266016,-400.0,0.00011744,2]
[361096546,1747252266026,-400.0,0.00011744,2]
[361096547,1747252266035,-400.0,0.00011744,2]
[361096548,1747252266045,-151.0,0.00011744,2]
[361096549,1747252266056,-400.0,0.00011744,2]
[361096550,1747252266066,-521.09608584,0.00011744,2]
[361096551,1747252266075,-400.0,0.00011744,2]
[361096552,1747252266084,-438.74,0.00011744,2]
[361096553,1747252266094,-911.12,0.00011744,2]
[361096554,1747252266103,-400.0,0.00011744,2]
[361096555,1747252266113,-400.0,0.00011744,2]
[361096556,1747252266122,-666.29,0.00011744,2]
[361096557,1747252266132,-493.97,0.00011744,2]
[361096558,1747252266142,-552.77,0.00011744,2]
[361096559,1747252266151,-462.07,0.00011744,2]
[361096560,1747252266164,-400.0,0.00011744,2]
[361096561,1747252266174,-1154.95,0.00011744,2]
[361096562,1747252266184,-400.0,0.00011744,2]
[361096563,1747252266195,-400.0,0.00011744,2]
[361096564,1747252266206,-400.0,0.00011744,2]
[361096565,1747252266215,-400.0,0.00011744,2]
[361096566,1747252266225,-422.14,0.00011744,2]
[361096567,1747252266234,-400.0,0.00011744,2]
[361096568,1747252266244,-400.0,0.00011744,2]
[361096569,1747252266254,-400.0,0.00011744,2]
[361096570,1747252266263,-400.0,0.00011744,2]
[361096571,1747252266275,-400.0,0.00011744,2]
[361096572,1747252266284,-400.0,0.00011744,2]
[361096573,1747252266295,-400.0,0.00011744,2]